bitfinex-derivatives/quotes_SOLF0:USTF0_20250301
["timestamp","ask_amount","ask_price","bid_price","bid_amount"]
[1740859155520,7.16221735,140.63,140.6,7.1153]
[1740859156815,7.1152,140.61,140.59,17.376]
[1740859157015,7.1152,140.61,140.59,7.116]
[1740859158720,7.115,140.62,140.6,7.1157]
[1740859159725,7.115,140.62,140.57,96.0692821]
[1740859160020,7.1153,140.61,140.57,96.0692821]
[1740859160617,7.1153,140.61,140.58,7.1163]
[1740859164024,0.04771735,140.63,140.57,96.0692821]
[1740859164220,7.1149,140.62,140.59,7.116]
[1740859168831,0.04771735,140.63,140.59,7.116]
[1740859169131,7.1152,140.61,140.59,7.116]
[1740859170831,0.04771735,140.63,140.59,7.116]
[1740859171034,7.115,140.62,140.59,7.1159]
[1740859171520,7.1157,140.61,140.57,96.0692821]
[1740859172534,7.1157,140.61,140.59,7.1162]
[1740859173434,0.04771735,140.63,140.57,96.0692821]
[1740859173833,0.04771735,140.63,140.54,11.17029153]
[1740859174036,1.9559,140.63,140.55,7.118]
[1740859174224,0.04557281,140.6,140.55,7.118]
[1740859174537,7.1165,140.59,140.56,7.1173]
[1740859176732,0.04557281,140.6,140.54,0.91029153]
[1740859176943,7.1168,140.58,140.55,7.1181]
[1740859178531,0.04557281,140.6,140.52,10.26]
[1740859178731,1.8562,140.59,140.52,10.26]
[1740859179036,7.1182,140.56,140.54,7.1187]
[1740859181425,7.1182,140.56,140.53,7.1191]
[1740859181630,3.9228,140.58,140.53,7.1191]
[1740859181832,0.04665525,140.56,140.53,7.1191]
[1740859182130,7.1185,140.55,140.53,7.1191]
[1740859182634,7.16465525,140.56,140.49,10.26]
[1740859183238,7.16465525,140.56,140.53,7.119]
[1740859184046,0.04665525,140.56,140.49,10.26]
[1740859184422,0.04665525,140.56,140.49,10.4545]
[1740859184626,0.04665525,140.56,140.55,7.1183]
[1740859187636,190.9642,140.6,140.53,10.26]
[1740859187838,5.7546,140.63,140.59,7.1162]
[1740859188038,12.8691,140.63,140.59,7.1162]
[1740859188643,5.7546,140.63,140.53,12.3419]
[1740859188847,0.05081989,140.62,140.6,0.05090516]
[1740859189045,0.05081989,140.62,140.6,0.04705433]
[1740859189648,7.1155,140.61,140.6,0.04705433]
[1740859191935,7.16581989,140.62,140.6,0.04705433]
[1740859195648,0.05081989,140.62,140.6,0.04705433]
[1740859195850,7.1152,140.61,140.6,0.04705433]
[1740859198049,7.16561989,140.62,140.6,7.16255433]
[1740859202456,0.05081989,140.62,140.6,0.04705433]
[1740859202649,7.1152,140.61,140.6,0.04705433]
[1740859203057,0.05081989,140.62,140.6,0.04705433]
[1740859203258,7.16571989,140.62,140.6,7.16245433]
[1740859203457,0.05081989,140.62,140.6,7.16245433]
[1740859204047,0.05081989,140.62,140.61,7.1152]
[1740859206665,0.05081989,140.62,140.6,0.04705433]
[1740859206861,0.05081989,140.62,140.57,10.24]
[1740859207159,7.116,140.6,140.56,7.1174]
[1740859207653,7.116,140.6,140.54,10.24]
[1740859207964,5.8051,140.66,140.54,10.24]
[1740859207965,7.1149,140.62,140.54,10.24]
[1740859208252,0.05205505,140.58,140.54,10.7446]
[1740859208457,7.1144,140.63,140.6,7.1156]
[1740859208653,5.8051,140.66,140.6,7.1156]
[1740859208960,0.04832533,140.63,140.58,10.24]
[1740859209649,0.04832533,140.63,140.61,7.1151]
[1740859209851,0.04832533,140.63,140.58,10.24]
[1740859210559,0.04832533,140.63,140.62,7.1147]
[1740859210965,0.04832533,140.63,140.62,17.3547]
[1740859212050,9.1045,140.7,140.62,10.24]
[1740859212251,1.8263,140.71,140.62,10.24]
[1740859212960,1.9909,140.75,140.62,10.24]
[1740859213164,1.15965541,140.74,140.63,2.1244]
[1740859213464,0.05282328,140.7,140.69,7.1112]
[1740859213664,7.1095,140.73,140.69,7.1112]
[1740859213961,0.04683398,140.71,140.69,7.1112]
[1740859214161,0.04683398,140.71,140.68,7.16331665]
[1740859214478,0.04683398,140.71,140.68,0.05181665]
[1740859214964,7.111,140.7,140.68,0.05181665]
[1740859215259,0.04683398,140.71,140.68,0.05181665]
[1740859215460,7.15713398,140.71,140.68,0.05181665]
[1740859217868,0.04683398,140.71,140.68,0.05181665]
[1740859218060,0.04683398,140.71,140.69,7.1107]
[1740859219166,0.04683398,140.71,140.7,7.1107]
[1740859222667,0.04683398,140.71,140.68,0.05181665]
[1740859223551,7.1112,140.69,140.68,0.05181665]
[1740859223753,0.04683398,140.71,140.59,1.41666697]
[1740859223963,16.0555,140.75,140.59,1.41666697]
[1740859223964,1.1597567,140.74,140.6,10.24]
[1740859224168,14.0572,140.75,140.64,7.1137]
[1740859224169,7.1124,140.67,140.64,7.1137]
[1740859224366,14.0572,140.75,140.59,1.41666697]
[1740859224558,7.1131,140.66,140.6,10.24]
[1740859224970,0.04799076,140.64,140.6,10.24]
[1740859225161,7.1132,140.65,140.61,7.1148]
[1740859225367,0.05063728,140.63,140.6,10.24]
[1740859226271,0.05063728,140.63,140.61,7.1152]
[1740859226871,0.05063728,140.63,140.6,10.24]
[1740859227069,0.05063728,140.63,140.6,17.3554]
[1740859227461,0.05063728,140.63,140.59,98.31550101]
[1740859227663,7.16513728,140.63,140.59,115.67140101]
[1740859227978,7.16513728,140.63,140.59,108.55550101]
[1740859228358,0.05063728,140.63,140.59,108.55550101]
[1740859228574,0.05063728,140.63,140.59,97.39943404]
[1740859228768,0.05063728,140.63,140.57,10.24]
[1740859228964,7.116,140.6,140.57,10.24]
[1740859230277,7.16891733,140.61,140.57,17.3573]
[1740859230467,0.05341733,140.61,140.57,17.3573]
[1740859230775,0.05341733,140.61,140.53,10.24]
[1740859231477,7.1169,140.58,140.54,7.1184]
[1740859231678,7.1169,140.58,140.53,10.24]
[1740859231871,0.05074228,140.57,140.53,10.24]
[1740859232273,0.05074228,140.57,140.54,7.1187]
[1740859234280,0.05074228,140.57,140.53,7.119]
[1740859234471,0.05074228,140.57,140.51,10.24]
[1740859235082,7.1181,140.56,140.52,7.1193]
[1740859236069,7.1181,140.56,140.53,7.1192]
[1740859236267,0.05074228,140.57,140.51,10.24]
[1740859236470,0.05074228,140.57,140.5,94.45563444]
[1740859236669,0.05074228,140.57,140.48,10.24]
[1740859236872,1.8743,140.58,140.48,10.24]
[1740859237185,7.1196,140.53,140.5,7.1207]
[1740859237573,0.05074937,140.54,140.5,7.1207]
[1740859237775,7.1194,140.53,140.5,7.1207]
[1740859238383,0.05074937,140.54,140.48,7.1215]
[1740859238684,1.9902,140.52,140.45,10.24]
[1740859238885,2.0368509,140.52,140.45,10.24]
[1740859239384,2.0368509,140.52,140.43,10.24]
[1740859239681,1.9526,140.51,140.42,49.75893822]
[1740859239881,7.16738064,140.49,140.46,7.1228]
[1740859240471,0.04578064,140.49,140.44,7.1238]
[1740859241069,7.122,140.48,140.44,7.1238]
[1740859241470,0.04578064,140.49,140.44,7.1238]
[1740859242075,7.122,140.48,140.44,7.1238]
[1740859243078,0.04578064,140.49,140.43,7.124]
[1740859243279,2.0173,140.47,140.39,10.24]
[1740859243584,7.1239,140.44,140.39,10.24]
[1740859243782,1.9813,140.46,140.35,41.84793822]
[1740859243783,1.9813,140.46,140.4,7.1257]
[1740859244090,0.05065263,140.41,140.4,7.1257]
[1740859244279,0.0522925,140.44,140.4,7.1257]
[1740859245187,0.0522925,140.44,140.35,41.69893822]
[1740859245382,1.9341,140.45,140.35,51.38023822]
[1740859245784,0.04500705,140.41,140.35,51.38023822]
[1740859245976,0.04500705,140.41,140.35,11.8613]
[1740859246376,0.04500705,140.41,140.39,7.126]
[1740859246785,0.04500705,140.41,140.35,11.8613]
[1740859246992,7.17050705,140.41,140.35,11.8613]
[1740859248881,0.04500705,140.41,140.35,11.8613]
[1740859249081,0.04500705,140.41,140.35,10.24]
[1740859249392,192.9455,140.46,140.43,7.124]
[1740859249587,1.9813,140.46,140.4,10.26]
[1740859249988,9.1044,140.46,140.42,7.1246]
[1740859250294,1.9813,140.46,140.4,10.26]
[1740859250479,7.1237,140.45,140.42,7.1248]
[1740859250678,0.05318461,140.44,140.42,7.17099915]
[1740859251496,0.05318461,140.44,140.43,7.1244]
[1740859251698,0.05318461,140.44,140.42,0.04619915]
[1740859252600,7.17708461,140.44,140.42,0.04619915]
[1740859252795,0.05318461,140.44,140.42,0.04619915]
[1740859253501,0.05318461,140.44,140.42,7.17079915]
[1740859254199,0.05318461,140.44,140.43,7.1244]
[1740859257498,7.17708461,140.44,140.42,0.04619915]
[1740859258707,0.05318461,140.44,140.42,0.04619915]
[1740859258897,0.05318461,140.44,140.42,7.17099915]
[1740859259707,0.05318461,140.44,140.43,7.1244]
[1740859261913,7.1244,140.43,140.42,0.04619915]
[1740859262409,0.05318461,140.44,140.42,0.04619915]
[1740859262612,7.17718461,140.44,140.42,0.04619915]
[1740859263409,7.17718461,140.44,140.42,7.17099915]
[1740859263805,7.17718461,140.44,140.42,0.04619915]
[1740859264008,7.1244,140.43,140.42,0.04619915]
[1740859264813,7.17728461,140.44,140.42,0.04619915]
[1740859265123,0.05318461,140.44,140.42,0.04619915]
[1740859265322,0.05318461,140.44,140.42,7.17079915]
[1740859266519,7.17728461,140.44,140.42,0.04619915]
[1740859267322,7.1244,140.43,140.42,0.04619915]
[1740859269321,1.9456,140.43,140.37,39.51893822]
[1740859269822,7.1261,140.4,140.37,46.64593822]
[1740859270323,7.17678387,140.4,140.37,46.64593822]
[1740859274521,7.1269,140.38,140.37,108.67708014]
[1740859274727,7.1269,140.38,140.37,99.55468014]
[1740859275326,7.1269,140.38,140.37,79.55698014]
[1740859275525,10.6869,140.38,140.37,8.014e-05]
[1740859275731,201.6511,140.38,140.37,8.014e-05]
[1740859275924,7.1274,140.37,140.36,115.51579485]
[1740859276120,7.1274,140.37,140.36,92.93399485]
[1740859276322,10.6874,140.37,140.36,35.17379485]
[1740859276529,10.6874,140.37,140.36,32.13319485]
[1740859277622,3.56,140.37,140.32,9.90772516]
[1740859277822,7.1285,140.35,140.32,9.90772516]
[1740859278024,0.05192373,140.36,140.32,9.90772516]
[1740859278528,10.26,140.35,140.32,9.90772516]
[1740859278729,7.129,140.34,140.32,9.90772516]
[1740859279832,0.05192373,140.36,140.32,9.90772516]
[1740859280621,0.05192373,140.36,140.33,7.1292]
[1740859281633,0.05192373,140.36,140.34,7.1289]
[1740859281835,0.05192373,140.36,140.32,9.90772516]
[1740859282032,0.05192373,140.36,140.29,10.26]
[1740859282231,0.05192373,140.36,140.35,7.1284]
[1740859283542,29.61563524,140.41,140.33,10.26]
[1740859283741,26.57403524,140.41,140.34,3.7934]
[1740859283938,23.53223524,140.41,140.4,7.1259]
[1740859284332,20.49143524,140.41,140.4,7.1259]
[1740859284633,14.41003524,140.41,140.4,7.1259]
[1740859284837,0.05195755,140.42,140.41,7.1254]
[1740859285237,78.97502732,140.46,140.39,0.04546344]
[1740859285433,78.97502732,140.46,140.44,7.1237]
[1740859286442,79.02412482,140.46,140.44,0.05075429]
[1740859287536,0.0490975,140.46,140.44,0.05075429]
[1740859287942,7.1721975,140.46,140.44,0.05075429]
[1740859289742,7.1233,140.45,140.44,0.05075429]
[1740859291046,7.1233,140.45,140.35,2.0267]
[1740859291047,7.1264,140.39,140.35,2.0267]
[1740859291348,10.26,140.45,140.34,1.8458]
[1740859291550,7.1267,140.39,140.34,1.8458]
[1740859292050,0.05255446,140.38,140.35,0.04665639]
[1740859292843,7.1279,140.36,140.35,0.04665639]
[1740859296948,0.05255446,140.38,140.35,0.04665639]
[1740859297655,0.05255446,140.38,140.37,7.1274]
[1740859298739,78.97502732,140.43,140.36,10.28]
[1740859299748,237.70543202,140.47,140.36,10.28]
[1740859299945,0.04961674,140.41,140.38,0.04808918]
[1740859300257,237.70543202,140.47,140.36,10.28]
[1740859300452,7.1236,140.45,140.41,7.1251]
[1740859300651,0.04527397,140.43,140.36,10.28]
[1740859300948,7.16977397,140.43,140.42,0.04657962]
[1740859301143,0.04527397,140.43,140.38,0.0459072]
[1740859301342,0.04527397,140.43,140.36,10.28]
[1740859301544,0.04527397,140.43,140.39,0.05410895]
[1740859302956,7.1257,140.41,140.39,0.05410895]
[1740859303341,0.04527397,140.43,140.39,0.05410895]
[1740859303659,7.125,140.42,140.39,7.18010895]
[1740859304460,0.04527397,140.43,140.39,0.05410895]
[1740859305355,0.04527397,140.43,140.4,7.1255]
[1740859305859,0.04527397,140.43,140.39,0.05410895]
[1740859306350,7.1259,140.4,140.39,0.05410895]
[1740859306550,0.04527397,140.43,140.39,0.05410895]
[1740859308649,0.04527397,140.43,140.4,7.1258]
[1740859308852,0.04527397,140.43,140.39,0.05410895]
[1740859309454,0.04527397,140.43,140.41,7.1252]
[1740859311254,7.16967397,140.43,140.39,0.05410895]
[1740859311461,7.16967397,140.43,140.4,7.1256]
[1740859314462,7.16967397,140.43,140.41,7.1253]
[1740859316165,0.04527397,140.43,140.41,7.1253]
[1740859320963,0.04527397,140.43,140.42,7.1249]
[1740859321265,369.04339043,140.48,140.39,10.33410895]
[1740859321266,29.6367718,140.48,140.4,5.7513]
[1740859322159,0.05469714,140.45,140.43,0.05416248]
[1740859322367,29.6367718,140.48,140.44,10.3]
[1740859322871,29.6367718,140.48,140.47,7.1223]
[1740859323567,29.6367718,140.48,140.46,0.05124216]
[1740859324769,36.7588718,140.48,140.46,0.05124216]
[1740859324961,0.04495923,140.49,140.46,0.05124216]
[1740859325269,7.16645923,140.49,140.46,0.05124216]
[1740859325771,0.04495923,140.49,140.46,0.05124216]
[1740859327264,0.04495923,140.49,140.47,7.1223]
[1740859327569,7.16625923,140.49,140.46,0.05124216]
[1740859327762,0.04495923,140.49,140.46,0.05124216]
[1740859328768,7.1223,140.47,140.46,0.05124216]
[1740859329657,7.1221,140.48,140.46,0.05124216]
[1740859329856,0.04495923,140.49,140.47,7.1222]
[1740859330370,0.04495923,140.49,140.46,0.05124216]
[1740859330671,0.04495923,140.49,140.48,7.1218]
[1740859332072,0.04495923,140.49,140.46,0.05124216]
[1740859332674,0.04495923,140.49,140.47,7.1221]
[1740859332970,0.04495923,140.49,140.46,0.05124216]
[1740859333155,0.04495923,140.49,140.48,7.1218]
[1740859340470,0.04495923,140.49,140.47,7.1221]
[1740859340775,0.04495923,140.49,140.46,0.05124216]
[1740859341176,7.1219,140.48,140.46,7.17384216]
[1740859341673,0.04495923,140.49,140.46,0.05124216]
[1740859341970,7.1223,140.47,140.46,0.05124216]
[1740859346481,0.04495923,140.49,140.46,0.05124216]
[1740859346778,0.04495923,140.49,140.47,7.1219]
[1740859347175,0.04495923,140.49,140.46,0.05124216]
[1740859347474,0.04495923,140.49,140.48,7.1218]
[1740859348181,29.6367718,140.54,140.52,7.1196]
[1740859348577,29.6367718,140.54,140.47,3.9939]
[1740859348875,36.7556718,140.54,140.51,7.1201]
[1740859349275,7.17103399,140.54,140.51,7.17353263]
[1740859350072,7.1198,140.52,140.51,0.05343263]
[1740859356586,7.1215,140.49,140.47,7.1221]
[1740859356891,7.1215,140.49,140.46,10.24]
[1740859357075,7.1215,140.49,140.43,12.0943]
[1740859357279,7.1219,140.48,140.42,1.9257]
[1740859357591,1.9495,140.53,140.42,12.1657]
[1740859357776,0.05187496,140.46,140.44,7.17827922]
[1740859357975,7.1225,140.47,140.44,7.1235]
[1740859358184,0.05210277,140.46,140.44,7.16978897]
[1740859358386,7.17530277,140.46,140.44,0.04628897]
[1740859360681,7.17530277,140.46,140.44,7.17008897]
[1740859361592,0.05210277,140.46,140.44,7.17008897]
[1740859362987,0.05210277,140.46,140.44,0.04628897]
[1740859363178,0.05210277,140.46,140.45,7.1233]
[1740859363983,0.05210277,140.46,140.45,17.3633]
[1740859364484,29.6367718,140.51,140.5,7.1208]
[1740859364890,29.6367718,140.52,140.49,10.24]
[1740859365095,29.6367718,140.52,140.51,7.1203]
[1740859367885,0.0466317,140.53,140.5,0.04694811]
[1740859368092,0.0466317,140.53,140.52,7.1198]
[1740859373802,0.0466317,140.53,140.51,7.1202]
[1740859374096,0.0466317,140.53,140.5,0.04694811]
[1740859374297,0.0466317,140.53,140.51,7.12]
[1740859374502,0.0466317,140.53,140.5,0.04694811]
[1740859374803,7.1198,140.52,140.5,0.04694811]
[1740859375795,0.0466317,140.53,140.5,0.04694811]
[1740859376704,0.0466317,140.53,140.52,7.1198]
[1740859379490,1.9017,140.59,140.5,0.04694811]
[1740859379703,29.6367718,140.6,140.58,7.1168]
[1740859380096,29.6367718,140.6,140.59,7.1162]
[1740859380904,29.6367718,140.6,140.58,7.16702744]
[1740859381293,29.6367718,140.6,140.58,0.05052744]
[1740859381494,29.6367718,140.6,140.55,7.118]
[1740859381695,7.1165,140.59,140.53,10.24]
[1740859381904,29.6367718,140.6,140.53,10.24]
[1740859382205,7.116,140.6,140.57,7.117]
[1740859382500,7.116,140.6,140.57,7.16945948]
[1740859382706,7.16839679,140.6,140.57,7.16945948]
[1740859383207,0.05239679,140.6,140.57,0.05245948]
[1740859383702,7.16839679,140.6,140.57,7.16955948]
[1740859384310,7.1166,140.59,140.57,0.05245948]
[1740859385007,7.16839679,140.6,140.57,7.16935948]
[1740859385208,0.05239679,140.6,140.57,0.05245948]
[1740859385612,0.05239679,140.6,140.59,7.1162]
[1740859385909,0.05239679,140.6,140.57,0.05245948]
[1740859386101,7.16839679,140.6,140.57,7.16925948]
[1740859386298,0.05239679,140.6,140.57,7.16925948]
[1740859386509,0.05239679,140.6,140.57,0.05245948]
[1740859386710,7.1165,140.59,140.57,0.05245948]
[1740859387410,7.1168,140.58,140.57,0.05245948]
[1740859387800,7.1182,140.56,140.53,10.24]
[1740859387999,2.0105,140.61,140.5,10.24]
[1740859388200,1.16102904,140.6,140.53,7.119]
[1740859388398,7.1185,140.55,140.53,7.119]
[1740859389006,7.16666586,140.55,140.53,7.16407399]
[1740859390500,7.1188,140.54,140.53,0.04507399]
[1740859391395,7.16666586,140.55,140.53,0.04507399]
[1740859391702,0.04816586,140.55,140.53,0.04507399]
[1740859391909,0.04816586,140.55,140.54,7.1188]
[1740859392103,0.04816586,140.55,140.53,0.04507399]
[1740859392307,0.04816586,140.55,140.53,7.16397399]
[1740859392501,0.04816586,140.55,140.53,0.04507399]
[1740859393012,0.04816586,140.55,140.54,7.1188]
[1740859394406,7.1161,140.6,140.57,7.1168]
[1740859395000,7.1161,140.6,140.56,7.1176]
[1740859395515,0.05182021,140.59,140.57,0.0532473]
[1740859397317,7.1168,140.58,140.57,0.0532473]
[1740859398506,7.1184,140.55,140.52,7.1195]
[1740859399720,0.04666776,140.55,140.52,0.05114651]
[1740859400521,7.16516776,140.55,140.52,7.17044651]
[1740859400715,0.04666776,140.55,140.52,0.05114651]
[1740859402218,0.04666776,140.55,140.54,7.1188]
[1740859403315,0.04666776,140.55,140.53,7.119]
[1740859403514,0.04666776,140.55,140.52,0.05114651]
[1740859404518,7.16516776,140.55,140.52,0.05114651]
[1740859404719,0.04666776,140.55,140.52,0.05114651]
[1740859404912,0.04666776,140.55,140.53,7.1193]
[1740859405620,7.16496776,140.55,140.53,7.1193]
[1740859405824,0.04666776,140.55,140.53,7.1193]
[1740859407426,7.16526776,140.55,140.53,7.1193]
[1740859408625,7.16526776,140.55,140.52,7.17054651]
[1740859408828,0.04666776,140.55,140.52,7.17054651]
[1740859409325,7.16526776,140.55,140.52,7.17054651]
[1740859409819,0.04666776,140.55,140.52,0.05114651]
[1740859410021,7.1193,140.53,140.52,0.05114651]
[1740859410217,1.8606,140.54,140.42,5.8381]
[1740859410416,1.8475,140.53,140.47,7.122]
[1740859410820,7.1209,140.5,140.47,7.122]
[1740859411128,1.8475,140.53,140.45,7.1232]
[1740859411329,7.1221,140.48,140.47,0.0482782]
[1740859413723,0.05419517,140.5,140.47,0.0482782]
[1740859413920,7.1216,140.49,140.47,0.0482782]
[1740859418230,0.05419517,140.5,140.47,0.0482782]
[1740859418530,7.1218,140.48,140.47,0.0482782]
[1740859420325,10.29419517,140.5,140.42,7.1246]
[1740859420629,1.8288,140.47,140.41,7.1251]
[1740859421126,7.1246,140.43,140.41,7.1251]
[1740859421522,7.1246,140.43,140.41,7.17659563]
[1740859421723,0.04683916,140.45,140.41,7.17659563]
[1740859422027,7.1243,140.44,140.41,7.17659563]
[1740859423935,0.04683916,140.45,140.41,0.05149563]
[1740859424623,0.04683916,140.45,140.43,7.1241]
[1740859425233,7.17033916,140.45,140.43,7.1241]
[1740859425733,0.04683916,140.45,140.43,7.1241]
[1740859426033,0.04683916,140.45,140.44,7.1238]
[1740859428233,7.1206,140.51,140.47,7.1219]
[1740859428735,113.89341956,140.52,140.43,1.9885]
[1740859429032,113.89341956,140.52,140.5,7.1204]
[1740859429237,113.89341956,140.52,140.46,10.24]
[1740859429434,113.94360923,140.52,140.51,7.1203]
[1740859429634,113.94360923,140.52,140.5,0.04973967]
[1740859430835,7.1203,140.51,140.5,0.04973967]
[1740859432035,7.1227,140.47,140.43,12.2285]
[1740859432331,7.1227,140.47,140.43,10.24]
[1740859433228,0.049891,140.46,140.44,0.04507905]
[1740859435842,7.172791,140.46,140.44,0.04507905]
[1740859437939,7.1233,140.45,140.44,0.04507905]
[1740859440234,7.172891,140.46,140.44,0.04507905]
[1740859440844,0.049891,140.46,140.44,0.04507905]
[1740859442348,7.172691,140.46,140.44,0.04507905]
[1740859442743,0.049891,140.46,140.44,0.04507905]
[1740859443642,7.1233,140.45,140.44,0.04507905]
[1740859444049,0.049891,140.46,140.44,0.04507905]
[1740859444749,7.172991,140.46,140.44,0.04507905]
[1740859447851,7.172991,140.46,140.44,7.16887905]
[1740859451955,0.049891,140.46,140.45,7.1233]
[1740859453353,0.049891,140.46,140.44,0.04507905]
[1740859453555,7.173091,140.46,140.44,0.04507905]
[1740859454347,7.1233,140.45,140.44,0.04507905]
[1740859454954,0.049891,140.46,140.37,2.0089]
[1740859455155,1.16206334,140.47,140.37,2.0089]
[1740859455363,190.9642,140.46,140.34,14.0995]
[1740859455653,7.1256,140.41,140.37,7.1271]
[1740859455859,10.24,140.44,140.37,7.1271]
[1740859456060,0.05078182,140.42,140.39,0.0423307]
[1740859457455,7.1259,140.4,140.39,0.0423307]
[1740859459661,0.05078182,140.42,140.39,0.0423307]
[1740859460461,7.17588182,140.42,140.39,7.1684307]
[1740859460658,0.05078182,140.42,140.39,0.0423307]
[1740859461554,7.1254,140.41,140.39,7.1686307]
[1740859462765,7.17578182,140.42,140.39,7.1686307]
[1740859465065,0.05078182,140.42,140.4,7.1256]
[1740859465464,0.05078182,140.42,140.39,0.0423307]
[1740859465672,7.1254,140.41,140.39,0.0423307]
[1740859466270,7.17588182,140.42,140.39,7.1686307]
[1740859466869,7.17588182,140.42,140.39,0.0423307]
[1740859467069,0.05078182,140.42,140.4,7.1258]
[1740859468466,0.05078182,140.42,140.4,7.1254]
[1740859468668,0.05078182,140.42,140.39,0.0423307]
[1740859469269,0.05078182,140.42,140.4,7.1254]
[1740859470462,7.17568182,140.42,140.4,7.1254]
[1740859471665,0.05078182,140.42,140.31,12.2619]
[1740859471968,1.8409,140.41,140.3,10.24]
[1740859472169,10.24,140.4,140.29,1.8795]
[1740859472561,1.8821,140.39,140.29,1.8795]
[1740859472761,7.17826662,140.36,140.29,1.8795]
[1740859473962,0.05026662,140.36,140.29,1.8795]
[1740859474371,0.05026662,140.36,140.33,7.1291]
[1740859475273,0.05026662,140.36,140.31,7.1304]
[1740859475472,10.31026662,140.36,140.23,1.8953]
[1740859475661,3.11136124,140.35,140.23,3.7949]
[1740859475862,0.04860006,140.32,140.23,3.7949]
[1740859476062,0.04860006,140.32,140.23,14.0549]
[1740859476370,10.30860006,140.32,140.23,14.0549]
[1740859476763,1.9138,140.31,140.23,14.0549]
[1740859476963,1.9138,140.31,140.24,115.5954411]
[1740859476964,7.1321,140.28,140.24,115.5954411]
[1740859477472,7.17821467,140.28,140.24,115.5954411]
[1740859477865,7.1325,140.27,140.23,7.1343]
[1740859478369,0.04519185,140.26,140.23,7.1343]
[1740859481375,0.04519185,140.26,140.25,7.1335]
[1740859483173,190.9642,140.3,140.29,7.1315]
[1740859483369,10.26,140.31,140.29,7.1315]
[1740859483566,7.1302,140.32,140.29,7.1315]
[1740859483767,10.8916,140.33,140.29,7.1315]
[1740859483976,10.8916,140.33,140.3,7.1307]
[1740859484379,10.94477918,140.33,140.3,7.17589185]
[1740859485770,7.1304,140.31,140.3,0.04519185]
[1740859500786,7.1302,140.32,140.3,0.04519185]
[1740859501180,7.1302,140.32,140.3,7.17609185]
[1740859501690,7.18277918,140.33,140.31,7.1304]
[1740859502187,0.05317918,140.33,140.3,0.04519185]
[1740859502392,7.13,140.32,140.3,7.17599185]
[1740859502794,7.18277918,140.33,140.31,7.1304]
[1740859503090,7.18277918,140.33,140.3,0.04519185]
[1740859503976,0.05317918,140.33,140.3,0.04519185]
[1740859504182,0.05317918,140.33,140.32,7.1299]
[1740859505388,123.68744167,140.37,140.31,1.956]
[1740859505694,257.7367718,140.38,140.32,1.9916]
[1740859506692,0.05217729,140.36,140.34,0.05162175]
[1740859507290,0.05217729,140.36,140.35,7.1281]
[1740859508291,7.1284,140.35,140.34,0.05162175]
[1740859508492,0.05217729,140.36,140.27,1.8451]
[1740859508493,10.31217729,140.36,140.27,1.8451]
[1740859508702,10.26,140.36,140.27,1.8451]
[1740859509394,7.1296,140.33,140.3,7.1305]
[1740859509692,7.17644774,140.33,140.3,7.17724928]
[1740859509893,0.04684774,140.33,140.32,7.1299]
[1740859510087,238.36,140.38,140.3,0.04674928]
[1740859511190,0.04529166,140.35,140.34,7.1287]
[1740859511392,0.04529166,140.35,140.3,0.04674928]
[1740859511584,0.04529166,140.35,140.29,10.26]
[1740859511788,0.04529166,140.35,140.34,7.1289]
[1740859512187,123.65768575,140.4,140.31,0.04842909]
[1740859512388,7.1265,140.39,140.36,7.1277]
[1740859513401,7.17773464,140.39,140.36,7.1783769]
[1740859514797,7.127,140.38,140.36,0.0506769]
[1740859515295,0.05123464,140.39,140.36,0.0506769]
[1740859515296,7.1274,140.37,140.36,0.0506769]
[1740859516501,7.1272,140.38,140.36,0.0506769]
[1740859516701,0.05123464,140.39,140.36,0.0506769]
[1740859517599,7.1274,140.37,140.36,0.0506769]
[1740859518801,7.1274,140.37,140.36,7.69e-05]
[1740859523403,7.1271,140.38,140.36,7.69e-05]
[1740859524694,7.1274,140.37,140.36,7.69e-05]
[1740859530809,8.2905732,140.37,140.36,7.69e-05]
[1740859531104,7.1274,140.37,140.36,7.69e-05]
[1740859531300,8.290603,140.37,140.36,7.69e-05]
[1740859535104,53.50974784,140.37,140.36,7.69e-05]
[1740859535311,52.34654484,140.37,140.36,7.69e-05]
[1740859535510,53.50971417,140.37,140.36,7.69e-05]
[1740859538013,149.88161499,140.37,140.36,7.69e-05]
[1740859541115,120.24484319,140.37,140.36,7.69e-05]